bitfinex/quotes_SOLUSD_20251001
["timestamp","ask_amount","ask_price","bid_price","bid_amount"]
[1759306410502,0.28432314,210.43,210.42,71.12]
[1759306410704,4.75167948,210.46,210.42,71.12]
[1759306410909,4.75167948,210.46,210.43,0.66]
[1759306411131,4.75167948,210.46,210.44,33.4]
[1759306411329,4.75167948,210.46,210.42,37.06]
[1759306411507,6.26494932,210.46,210.43,34.06]
[1759306411830,4.75167948,210.46,210.43,34.06]
[1759306412031,4.75167948,210.46,210.44,0.66]
[1759306413321,5.03600262,210.46,210.45,33.4]
[1759306415421,13.59559401,210.5,210.45,34.06]
[1759306415422,26.98581331,210.5,210.45,34.06]
[1759306415621,26.98581331,210.5,210.46,0.66]
[1759306415830,0.28432314,210.49,210.47,34.06]
[1759306416034,0.28432314,210.49,210.48,33.4]
[1759306416717,5.03514265,210.49,210.48,33.4]
[1759306420622,4.75081951,210.49,210.48,33.4]
[1759306420820,5.03514265,210.49,210.48,33.4]
[1759306421636,4.75035863,210.52,210.48,34.06]
[1759306421834,4.75035863,210.52,210.49,0.66]
[1759306422539,16.62571489,210.52,210.48,33.4]
[1759306422720,16.62571489,210.52,210.49,0.66]
[1759306423044,17.33571489,210.52,210.48,33.4]
[1759306423212,16.62571489,210.52,210.49,0.66]
[1759306423413,16.62571489,210.52,210.5,33.4]
[1759306423810,16.91003803,210.52,210.51,33.4]
[1759306425841,16.41003803,210.52,210.51,33.4]
[1759306426948,17.12003803,210.52,210.51,33.4]
[1759306427343,18.63330787,210.52,210.45,20.8]
[1759306427584,18.63330787,210.52,210.47,0.66]
[1759306428120,18.63330787,210.52,210.48,0.66]
[1759306428333,19.48479433,210.52,210.48,0.66]
[1759306428645,18.77479433,210.52,210.49,0.66]
[1759306428852,18.77479433,210.52,210.5,33.4]
[1759306429549,138.25036815,210.51,210.5,33.4]
[1759306430749,133.5,210.51,210.5,33.4]
[1759306430931,9.65670467,210.53,210.5,38.81054824]
[1759306431250,9.65670467,210.53,210.51,0.66]
[1759306432846,9.65670467,210.53,210.5,38.15054824]
[1759306433047,9.65670467,210.53,210.51,0.66]
[1759306433246,9.65670467,210.53,210.5,38.15054824]
[1759306433448,9.65670467,210.53,210.52,0.69]
[1759306434031,14.40664988,210.53,210.49,0.69]
[1759306434230,14.40664988,210.53,210.28,23.14096107]
[1759306434231,0.66,210.52,210.47,0.69]
[1759306434429,0.66,210.52,210.37,43.76662377]
[1759306434430,0.66,210.52,210.48,33.38]
[1759306434854,0.66,210.52,210.48,34.07]
[1759306435238,4.75036815,210.51,210.48,34.07]
[1759306437163,4.75036815,210.51,210.49,0.69]
[1759306438460,19.65104483,210.51,210.48,33.38]
[1759306438961,3.0247563,210.5,210.45,0.69]
[1759306439159,0.66,210.5,210.46,34.07]
[1759306439371,3.0247563,210.5,210.46,34.07]
[1759306439561,18.99104483,210.51,210.46,33.38]
[1759306439743,19.65104483,210.51,210.47,0.69]
[1759306440640,3.30907944,210.5,210.45,0.69]
[1759306440841,3.30907944,210.5,210.46,34.07]
[1759306441770,4.75081951,210.49,210.46,34.07]
[1759306442606,16.6278683,210.49,210.43,20.8]
[1759306442744,2.3647563,210.46,210.42,37.06]
[1759306442949,2.3647563,210.46,210.43,34.07]
[1759306443253,3.30907944,210.48,210.43,34.07]
[1759306443456,2.3647563,210.47,210.43,34.07]
[1759306443660,3.0247563,210.47,210.43,34.07]
[1759306444565,4.75149672,210.46,210.43,34.07]
[1759306444780,4.75149672,210.46,210.44,0.69]
[1759306445271,0.66,210.55,210.44,0.69]
[1759306445441,9.65670467,210.53,210.47,20.8]
[1759306445642,9.65670467,210.53,210.51,20.8]
[1759306445851,9.65670467,210.53,210.52,34.07]
[1759306446272,4.74811262,210.61,210.52,34.07]
[1759306446486,4.74811262,210.61,210.53,0.69]
[1759306446686,4.74811262,210.61,210.54,4.74969127]
[1759306446984,4.74811262,210.61,210.55,0.69]
[1759306447176,4.74811262,210.61,210.56,33.38]
[1759306447383,4.74811262,210.61,210.57,0.69]
[1759306447577,4.74811262,210.61,210.58,0.69]
[1759306447784,18.3434812,210.62,210.58,0.69]
[1759306448085,0.28432314,210.61,210.58,0.69]
[1759306448882,5.03250588,210.61,210.59,0.69]
[1759306449087,5.03250588,210.61,210.6,33.38]
[1759306449285,5.69250588,210.61,210.6,33.38]
[1759306449594,5.03250588,210.61,210.6,33.38]
[1759306450891,4.74818274,210.61,210.6,33.38]
[1759306451291,5.03221033,210.62,210.6,33.38]
[1759306451673,5.69221033,210.62,210.6,33.38]
[1759306454111,0.1,210.65,210.61,0.69]
[1759306454672,0.1,210.65,210.61,37.75]
[1759306454894,0.1,210.71,210.64,20.8]
[1759306455124,0.1,210.71,210.65,34.07]
[1759306455475,0.1,210.71,210.66,0.69]
[1759306455702,4.8459088,210.71,210.66,0.69]
[1759306457975,4.8459088,210.71,210.67,0.69]
[1759306458476,4.8459088,210.71,210.68,0.69]
[1759306458676,4.8459088,210.71,210.69,33.36]
[1759306459980,0.1,210.71,210.7,0.7]
[1759306460296,0.1,210.71,210.69,33.36]
[1759306460496,4.84585923,210.71,210.69,34.06]
[1759306460977,4.84585923,210.71,210.69,33.36]
[1759306463294,4.84585923,210.71,210.7,33.36]
[1759306464015,5.54585923,210.71,210.65,0.72]
[1759306464225,5.54585923,210.71,210.66,33.36]
[1759306464517,5.54585923,210.71,210.66,34.08]
[1759306465692,0.7,210.7,210.63,0.72]
[1759306465893,0.7,210.7,210.64,54.16]
[1759306466896,4.74630974,210.69,210.64,20.8]
[1759306467223,5.44630974,210.69,210.65,33.36]
[1759306467428,17.3120841,210.69,210.66,33.36]
[1759306467826,0.7,210.68,210.64,21.52]
[1759306468040,0.7,210.68,210.65,33.36]
[1759306469015,4.74676033,210.67,210.65,33.36]
[1759306470812,5.03040762,210.7,210.66,0.72]
[1759306471328,17.59561882,210.7,210.66,0.72]
[1759306471524,16.61129568,210.7,210.66,0.72]
[1759306472131,17.31129568,210.7,210.66,0.72]
[1759306472529,16.61129568,210.7,210.67,0.72]
[1759306472703,16.61129568,210.7,210.65,34.08]
[1759306472909,0.7,210.69,210.65,0.72]
[1759306473119,0.7,210.69,210.66,33.36]
[1759306473409,16.61129568,210.7,210.66,34.08]
[1759306473605,17.31129568,210.7,210.66,34.08]
[1759306474530,0.7,210.69,210.63,0.72]
[1759306474736,0.7,210.69,210.64,33.36]
[1759306474935,0.7,210.69,210.65,0.72]
[1759306474936,4.74653502,210.68,210.65,0.72]
[1759306475928,16.61129568,210.7,210.65,0.72]
[1759306476130,17.31129568,210.7,210.65,0.72]
[1759306476722,17.31129568,210.7,210.66,33.36]
[1759306479513,16.61129568,210.7,210.66,33.36]
[1759306479715,16.61287259,210.68,210.62,0.72]
[1759306480034,16.61287259,210.68,210.63,33.34]
[1759306480212,0.7,210.67,210.63,34.06]
[1759306480827,16.61287259,210.68,210.64,0.72]
[1759306481338,17.31287259,210.68,210.64,0.72]
[1759306481739,0.7,210.67,210.63,33.34]
[1759306481935,4.74698566,210.66,210.63,33.34]
[1759306482132,5.44698566,210.66,210.63,33.34]
[1759306482633,4.74698566,210.66,210.63,34.06]
[1759306483210,4.74698566,210.66,210.61,37.06]
[1759306483211,0.7,210.65,210.61,37.06]
[1759306483540,0.7,210.64,210.62,33.34]
[1759306484122,4.74766177,210.63,210.62,33.34]
[1759306484929,4.74766177,210.63,210.61,37.06]
[1759306485115,4.74766177,210.63,210.62,33.34]
[1759306486231,16.61602734,210.64,210.61,37.06]
[1759306486423,17.31602734,210.64,210.62,33.34]
[1759306488828,11.86859096,210.64,210.62,33.34]
[1759306489138,4.74698566,210.66,210.63,0.72]
[1759306489311,16.61444982,210.66,210.63,0.72]
[1759306489515,17.31444982,210.66,210.62,33.34]
[1759306489911,17.31444982,210.66,210.62,34.06]
[1759306490131,16.61444982,210.66,210.62,33.34]
[1759306490340,0.7,210.65,210.62,33.34]
[1759306490538,4.74743638,210.64,210.62,33.34]
[1759306491032,4.74743638,210.64,210.61,37.78]
[1759306491226,4.74743638,210.64,210.62,33.34]
[1759306491227,0.7,210.63,210.62,33.34]
[1759306491536,4.74743638,210.64,210.62,33.34]
[1759306492316,4.74743638,210.64,210.63,33.34]
[1759306492730,4.74743638,210.64,210.61,37.06]
[1759306492933,4.74743638,210.64,210.62,33.34]
[1759306498740,0.68,210.63,210.61,37.06]
[1759306499044,0.68,210.62,210.61,37.06]
[1759306499239,0.68,210.62,210.61,70.4]
[1759306499450,0.68,210.62,210.61,37.06]
[1759306499623,5.71221033,210.62,210.61,70.4]
[1759306499821,4.74743638,210.64,210.61,71.12]
[1759306500335,138.24725282,210.65,210.62,0.72]
[1759306500556,138.24725282,210.65,210.63,33.34]
[1759306500926,138.24725282,210.65,210.63,34.06]
[1759306501121,11.86572079,210.7,210.64,0.72]
[1759306501428,11.86572079,210.7,210.65,33.34]
[1759306501642,4.74608448,210.7,210.66,0.72]
[1759306501827,4.84588872,210.71,210.67,34.06]
[1759306502250,0.68,210.7,210.68,33.34]
[1759306502552,16.71053681,210.71,210.69,33.34]
[1759306502932,17.39053681,210.71,210.69,33.34]
[1759306503628,5.52588872,210.71,210.69,33.34]
[1759306503830,4.84588872,210.71,210.69,33.34]
[1759306506425,4.84588872,210.71,210.69,34.06]
[1759306506827,4.84588872,210.71,210.69,0.72]
[1759306507027,4.84588872,210.71,210.7,33.34]
[1759306508133,17.39053681,210.71,210.7,33.34]
[1759306508536,13.87991715,210.7,210.64,20.8]
[1759306508733,2.19125212,210.69,210.65,33.34]
[1759306509052,2.19125212,210.69,210.65,34.06]
[1759306509053,1.51125212,210.69,210.65,34.06]
[1759306509435,2.19125212,210.69,210.65,34.06]
[1759306509629,4.74653502,210.68,210.65,34.06]
[1759306510356,0.68,210.67,210.66,33.34]
[1759306510729,16.61287259,210.68,210.66,33.34]
[1759306511149,17.29287259,210.68,210.66,33.34]
[1759306514944,16.61287259,210.68,210.66,33.34]
[1759306515346,11.86633757,210.68,210.66,33.34]
[1759306515734,12.54633757,210.68,210.66,33.34]
[1759306517166,12.54633757,210.68,210.67,33.34]
[1759306518653,4.74653502,210.68,210.67,34.06]
[1759306518962,4.74653502,210.68,210.67,33.34]
[1759306519858,4.74630974,210.69,210.67,33.34]
[1759306520247,4.74630974,210.69,210.68,0.69]
[1759306520644,4.74630974,210.69,210.67,33.34]
[1759306520843,4.74630974,210.69,210.67,34.03]
[1759306521270,4.84586898,210.71,210.68,0.69]
[1759306521761,0.1,210.71,210.69,0.69]
[1759306521972,0.1,210.71,210.7,0.69]
[1759306523062,4.8459053,210.71,210.67,33.34]
[1759306523260,4.8459053,210.71,210.68,0.69]
[1759306523452,0.1,210.71,210.69,0.67]
[1759306523846,0.1,210.71,210.7,0.67]
[1759306525453,5.56585923,210.71,210.66,0.67]
[1759306525654,0.72,210.7,210.67,33.34]
[1759306525857,2.23125212,210.69,210.63,0.67]
[1759306526062,2.23125212,210.69,210.64,33.34]
[1759306526063,1.51125212,210.68,210.64,33.34]
[1759306526245,2.23125212,210.68,210.64,33.34]
[1759306527248,4.74676033,210.67,210.64,33.34]
[1759306528746,0.72,210.66,210.61,37.06]
[1759306528937,0.72,210.65,210.62,33.34]
[1759306529141,4.74743638,210.64,210.62,33.34]
[1759306529478,4.74743638,210.64,210.62,34.01]
[1759306532282,4.74698566,210.66,210.62,34.01]
[1759306533046,4.74698566,210.66,210.63,33.34]
[1759306534256,4.74698566,210.66,210.64,33.34]
[1759306534478,4.74698566,210.66,210.65,33.34]
[1759306535475,5.46698566,210.66,210.65,33.34]
[1759306535659,5.46698566,210.66,210.62,0.67]
[1759306535859,5.46698566,210.66,210.63,33.34]
[1759306537073,4.74698566,210.66,210.63,33.34]
[1759306537250,4.74698566,210.66,210.63,34.01]
[1759306538756,5.46698566,210.66,210.63,33.34]
[1759306538980,17.33444982,210.66,210.63,33.34]
[1759306539281,16.61444982,210.66,210.63,33.34]
[1759306539580,16.61444982,210.66,210.63,34.01]
[1759306540276,13.59559401,210.63,210.61,37.06]
[1759306540477,2.51557526,210.62,210.54,0.67]
[1759306540685,1.51125212,210.59,210.55,33.32]
[1759306540980,4.74788719,210.62,210.56,0.67]
[1759306541155,6.25913931,210.62,210.56,0.67]
[1759306541656,0.72,210.61,210.56,0.67]
[1759306541856,1.51125212,210.59,210.55,33.32]
[1759306542168,1.51125212,210.58,210.55,33.99]
[1759306542578,1.51125212,210.57,210.53,21.47]
[1759306542786,1.51125212,210.57,210.54,34.01]
[1759306542959,4.74924012,210.56,210.55,33.34]
[1759306543162,4.74924012,210.56,210.55,34.01]
[1759306543681,4.74924012,210.56,210.55,33.34]
[1759306543867,4.74924012,210.56,210.55,0.67]
[1759306544181,4.74924012,210.56,210.55,33.34]
[1759306544983,4.74924012,210.56,210.55,34.01]
[1759306545283,1.51125212,210.58,210.55,34.01]
[1759306545466,1.51125212,210.58,210.56,33.34]
[1759306547175,1.51125212,210.58,210.56,34.01]
[1759306547485,6.26012221,210.58,210.56,33.34]
[1759306548687,6.26012221,210.58,210.54,0.67]
[1759306548888,4.74887009,210.58,210.57,33.34]
[1759306549872,138.2486884,210.59,210.57,33.34]
[1759306550074,1.51125212,210.58,210.57,33.34]
[1759306551287,6.26004117,210.58,210.57,33.34]
[1759306552384,7.11207669,210.58,210.57,33.34]
[1759306553675,7.11207669,210.58,210.55,0.67]
[1759306553886,7.11207669,210.58,210.57,33.34]
[1759306555991,4.74878905,210.58,210.57,33.34]
[1759306556167,7.11207669,210.58,210.57,33.34]
[1759306557994,7.11207669,210.58,210.57,34.0]
[1759306558289,7.11207669,210.58,210.57,33.34]
[1759306558673,4.74878905,210.58,210.57,33.34]
[1759306558875,7.11207669,210.58,210.57,33.34]
[1759306559189,7.11207669,210.58,210.55,0.66]
[1759306559501,7.11207669,210.58,210.56,33.34]
[1759306559669,2.36328764,210.57,210.56,33.34]
[1759306559871,2.36328764,210.57,210.56,34.0]
[1759306560072,2.36328764,210.58,210.56,34.0]
[1759306560267,2.36328764,210.58,210.56,33.34]
[1759306560462,2.36328764,210.58,210.56,34.0]
[1759306560981,135.86328764,210.59,210.56,34.0]
[1759306561170,2.36328764,210.57,210.5,37.7]
[1759306561371,2.36328764,210.52,210.5,37.7]
[1759306561565,2.36328764,210.52,210.51,33.32]
[1759306561906,30.50067884,210.58,210.51,33.32]
[1759306562192,2.36328764,210.57,210.52,0.66]
[1759306562403,2.36328764,210.58,210.52,0.66]
[1759306562979,2.36328764,210.58,210.53,4.74991687]
[1759306563184,2.36328764,210.58,210.54,0.66]
[1759306563502,2.36328764,210.58,210.55,33.98]
[1759306563908,0.67,210.57,210.55,33.32]
[1759306564210,2.36328764,210.57,210.55,33.32]
[1759306564693,2.36328764,210.57,210.55,33.98]
[1759306564876,2.36328764,210.58,210.55,33.98]
[1759306565077,7.11216334,210.58,210.55,33.98]
[1759306566089,2.36328764,210.57,210.55,33.32]
[1759306566278,2.36328764,210.57,210.55,33.98]
[1759306566905,2.36328764,210.57,210.55,33.32]
[1759306567984,2.36328764,210.58,210.55,33.98]
[1759306568194,2.36328764,210.58,210.56,0.66]
[1759306568408,140.61186324,210.59,210.56,0.66]
[1759306568792,2.36328764,210.57,210.52,0.66]
[1759306569115,0.67,210.56,210.53,33.32]
[1759306569304,0.67,210.55,210.53,33.32]
[1759306570180,7.11297891,210.54,210.53,33.32]
[1759306570677,7.78297891,210.54,210.5,37.04]
[1759306570877,2.36328764,210.51,210.5,37.04]
[1759306571085,3.03328764,210.51,210.5,70.36]
[1759306572103,7.78365579,210.51,210.5,70.36]
[1759306572303,7.78365579,210.51,210.5,37.04]
[1759306572478,8.06797893,210.51,210.5,37.04]
[1759306572784,21.66357294,210.51,210.5,70.36]
[1759306573589,21.66357294,210.51,210.5,37.04]
[1759306573995,21.66357294,210.51,210.5,70.36]
[1759306575891,21.66357294,210.51,210.43,0.2]
[1759306575892,0.28432314,210.49,210.43,0.2]
[1759306576212,0.67,210.48,210.43,0.2]
[1759306576388,2.36328764,210.45,210.44,33.34]
[1759306577492,3.03328764,210.45,210.43,0.2]
[1759306577814,21.66515308,210.44,210.43,0.2]
[1759306578304,21.66515308,210.44,210.43,33.54]
[1759306578682,21.66515308,210.44,210.43,0.2]
[1759306578886,21.66515308,210.44,210.43,33.54]
[1759306581893,5.0367231,210.42,210.41,37.26]
[1759306582088,0.14216157,210.4,210.35,0.2]
[1759306582424,2.64761078,210.36,210.35,0.2]
[1759306582615,3.36761078,210.36,210.35,0.2]
[1759306582919,2.64761078,210.38,210.35,0.91]
[1759306583096,0.28432314,210.38,210.36,34.05]
[1759306583411,13.87991715,210.41,210.37,0.69]
[1759306583608,2.36328764,210.4,210.37,0.69]
[1759306583789,14.59991715,210.41,210.36,33.34]
[1759306583790,13.87991715,210.41,210.36,33.34]
[1759306583992,16.63339986,210.42,210.38,0.69]
[1759306584188,4.75239996,210.42,210.39,33.34]
[1759306584388,4.75239996,210.42,210.4,0.69]
[1759306585241,4.75239996,210.42,210.39,33.34]
[1759306585620,4.75239996,210.42,210.39,34.03]
[1759306588311,3.08328764,210.41,210.35,21.69]
[1759306588498,2.36328764,210.41,210.36,34.03]
[1759306588802,16.63339986,210.42,210.37,0.69]
[1759306589004,16.63339986,210.42,210.38,0.69]
[1759306589209,4.75239996,210.42,210.39,0.69]
[1759306589420,4.75239996,210.42,210.4,33.34]
[1759306590324,4.75239996,210.42,210.4,34.03]
[1759306591122,4.75239996,210.42,210.4,33.34]
[1759306592623,4.75239996,210.42,210.4,34.03]
[1759306592826,4.75239996,210.42,210.4,33.34]
[1759306593816,0.72,210.41,210.36,0.69]
[1759306594011,3.08328764,210.41,210.37,34.03]
[1759306594417,4.75285171,210.4,210.37,34.03]
[1759306595219,4.75285171,210.4,210.37,0.69]
[1759306595410,11.8809999,210.42,210.38,33.34]
[1759306595620,2.36328764,210.41,210.38,34.03]
[1759306596198,2.36328764,210.41,210.39,33.34]
[1759306596626,14.96428754,210.42,210.39,33.34]
[1759306597306,0.28432314,210.42,210.39,33.34]
[1759306597628,0.28432314,210.42,210.4,0.69]
[1759306597629,4.75262582,210.41,210.4,0.69]
[1759306598727,4.75262582,210.41,210.39,33.34]
[1759306598916,4.75262582,210.41,210.39,34.03]
[1759306599636,5.47262582,210.41,210.39,33.34]
[1759306599814,0.72,210.4,210.35,0.89]
[1759306600129,18.99747802,210.41,210.36,34.03]
[1759306600318,18.99747802,210.41,210.37,0.69]
[1759306600515,18.99747802,210.41,210.38,0.69]
[1759306601728,18.99747802,210.41,210.36,34.03]
[1759306601932,0.72,210.4,210.36,33.34]
[1759306602124,19.71747802,210.41,210.37,0.69]
[1759306602431,4.75262582,210.41,210.36,33.34]
[1759306602627,4.75262582,210.41,210.38,0.69]
[1759306602934,4.75262582,210.41,210.39,0.69]
[1759306603126,4.75262582,210.41,210.4,33.34]
[1759306604520,7.83591346,210.41,210.4,33.34]
[1759306604828,4.75262582,210.41,210.4,33.34]
[1759306605031,0.28432314,210.43,210.4,34.03]
[1759306605206,133.5,210.44,210.41,0.69]
[1759306605809,4.75221783,210.43,210.41,0.69]
[1759306606015,4.75221783,210.43,210.4,33.34]
[1759306606314,4.75221783,210.43,210.4,34.03]
[1759306606516,4.75221783,210.43,210.41,0.69]
[1759306606735,4.75221783,210.43,210.42,0.69]
[1759306606936,4.75221783,210.43,210.42,34.03]
[1759306610334,133.5,210.44,210.42,34.03]
[1759306610541,133.5,210.44,210.42,33.34]
[1759306610730,133.5,210.44,210.42,34.03]
[1759306612048,0.72,210.43,210.38,0.69]
[1759306612345,0.72,210.42,210.39,33.34]
[1759306612846,4.75239996,210.42,210.39,0.69]
[1759306613140,4.75239996,210.42,210.4,33.34]
[1759306614341,148.46315838,210.44,210.39,0.69]
[1759306614342,4.75217411,210.43,210.39,0.69]
[1759306614517,4.75217411,210.43,210.4,33.34]
[1759306614836,4.75217411,210.43,210.4,34.02]
[1759306615423,5.41217411,210.43,210.4,33.34]
[1759306616141,4.75217411,210.43,210.4,33.34]
[1759306616360,1.51464781,210.41,210.37,37.08]
[1759306616519,1.51464781,210.39,210.37,37.08]
[1759306616721,2.17464781,210.39,210.38,33.34]
[1759306617245,135.29897095,210.4,210.38,33.34]
[1759306617745,135.95897095,210.4,210.38,33.34]
[1759306618152,4.75307761,210.39,210.38,33.34]
[1759306618456,138.25285826,210.4,210.38,34.02]
[1759306618927,138.25285826,210.4,210.39,0.68]
[1759306619248,138.25285826,210.4,210.38,33.34]
[1759306619547,138.25285826,210.4,210.38,34.02]
[1759306620424,133.5,210.4,210.39,0.68]
[1759306621924,138.25285171,210.4,210.37,37.76]
[1759306622126,138.25285171,210.4,210.38,33.34]
[1759306623123,0.66,210.39,210.37,37.08]
[1759306623320,0.66,210.39,210.38,33.34]
[1759306624141,138.25285171,210.4,210.38,33.34]
[1759306624339,138.91285171,210.4,210.38,33.34]
[1759306624541,138.25285171,210.4,210.38,33.34]
[1759306624755,138.25285171,210.4,210.37,37.08]
[1759306625051,138.91285171,210.4,210.39,33.34]
[1759306627071,152.59395193,210.4,210.39,33.34]
[1759306628288,138.53717485,210.4,210.39,33.34]
[1759306628444,140.71182266,210.4,210.39,33.34]
[1759306630151,138.53717485,210.4,210.39,33.34]
[1759306630659,139.19717485,210.4,210.39,33.34]
[1759306630867,0.28432314,210.39,210.29,0.2]
[1759306631191,13.87991715,210.35,210.32,33.34]
[1759306631471,13.59559401,210.33,210.32,33.34]
[1759306631672,14.53991715,210.33,210.32,33.34]
[1759306631878,28.13551116,210.33,210.32,33.34]
[1759306633070,32.88994466,210.33,210.32,33.34]
[1759306634180,7.95705621,210.34,210.32,33.36]
[1759306634355,0.28432314,210.33,210.32,33.36]
[1759306634677,1.79897095,210.33,210.32,33.36]
[1759306634867,0.94432314,210.33,210.32,33.36]
[1759306635375,5.03875664,210.33,210.32,34.04]
[1759306635551,5.03875664,210.33,210.32,33.36]
[1759306635752,5.03875664,210.33,210.32,34.04]
[1759306635960,5.03875664,210.33,210.32,33.36]
[1759306636359,4.7544335,210.33,210.32,34.04]
[1759306637153,0.28432314,210.34,210.32,34.04]
[1759306637487,0.28432314,210.34,210.33,0.68]
[1759306638276,4.7544335,210.33,210.32,33.36]
[1759306638576,4.7544335,210.33,210.32,34.04]
[1759306638980,5.03855543,210.34,210.32,34.04]
[1759306639479,4.75423229,210.34,210.33,0.68]
[1759306640481,5.0380786,210.36,210.33,0.68]
[1759306640882,5.0380786,210.36,210.32,33.36]
[1759306641179,5.0380786,210.36,210.32,34.04]
[1759306641550,4.89591703,210.36,210.32,34.04]
[1759306642152,0.14216157,210.35,210.31,0.68]
[1759306642392,0.14216157,210.35,210.32,33.46]
[1759306642562,4.75420747,210.34,210.32,33.46]
[1759306644576,4.75420747,210.34,210.33,33.46]
[1759306645329,0.28432314,210.33,210.29,0.2]
[1759306645580,2.51897095,210.33,210.3,33.46]
[1759306646083,1.79897095,210.33,210.3,33.46]
[1759306646458,0.28432314,210.33,210.29,0.2]
[1759306646655,1.79897095,210.3,210.28,37.08]
[1759306646860,2.51897095,210.29,210.28,37.08]
[1759306647277,2.51897095,210.29,210.28,70.64]
[1759306648692,7.27430881,210.29,210.28,70.64]
[1759306648998,7.27430881,210.29,210.28,37.08]
[1759306649203,7.27430881,210.29,210.28,70.64]
[1759306650871,0.28432314,210.27,210.22,0.2]
[1759306651074,1.51464781,210.23,210.22,0.2]
[1759306651301,1.51464781,210.23,210.19,0.2]
[1759306651510,1.51464781,210.22,210.19,0.2]
[1759306651996,0.28432314,210.27,210.19,0.2]
[1759306651997,1.51464781,210.2,210.19,0.2]
[1759306652201,1.00432314,210.2,210.19,0.2]
[1759306652391,1.79897095,210.2,210.19,33.78]
[1759306652593,2.51897095,210.2,210.19,33.78]
[1759306652769,7.27634487,210.2,210.19,33.78]
[1759306653574,7.27634487,210.2,210.19,0.2]
[1759306653575,5.04169706,210.2,210.19,0.2]
[1759306653805,6.55634487,210.2,210.19,33.76]
[1759306654300,4.75716798,210.21,210.19,33.76]
[1759306654488,4.75716798,210.21,210.19,34.45]
[1759306654880,20.8,210.24,210.2,0.69]
[1759306655101,4.75646879,210.24,210.21,0.69]
[1759306655400,4.75646879,210.24,210.22,33.56]
[1759306656098,4.75624256,210.25,210.22,33.56]
[1759306656399,4.75624256,210.25,210.22,34.25]
[1759306656604,4.75624256,210.25,210.22,33.56]
[1759306657510,18.88149679,210.25,210.22,33.56]
[1759306657712,18.88149679,210.25,210.2,0.69]
[1759306657894,18.88149679,210.25,210.21,33.56]
[1759306658202,4.75669504,210.23,210.22,33.56]
[1759306660298,133.5,210.23,210.22,33.56]
[1759306660496,4.75627515,210.25,210.22,34.25]
[1759306660682,4.75627515,210.25,210.23,0.69]
[1759306662325,0.72,210.25,210.21,0.69]
[1759306662502,18.16070507,210.26,210.24,33.56]
[1759306662686,18.88070507,210.26,210.24,33.56]
[1759306663410,0.14216157,210.27,210.24,34.25]
[1759306663585,133.5,210.28,210.24,34.25]
[1759306663914,133.5,210.28,210.25,0.69]
[1759306664296,133.5,210.28,210.24,34.25]
[1759306664812,133.5,210.28,210.25,0.69]
[1759306665012,138.25557776,210.28,210.25,0.69]
[1759306665213,138.25557776,210.28,210.26,0.69]
[1759306665610,133.5,210.28,210.26,0.69]
[1759306665909,138.25561789,210.28,210.26,0.69]
[1759306667695,138.25561789,210.28,210.24,34.25]
[1759306668019,138.25561789,210.28,210.25,0.69]
[1759306669598,138.25561789,210.28,210.24,33.56]
[1759306669820,0.72,210.27,210.25,33.52]
[1759306670011,138.25561789,210.28,210.25,33.52]
[1759306670321,138.97561789,210.28,210.25,33.52]